Workbook

Sheet DICTADOS
A1: B | B1: I | C1: N | D1: G | E1: O | G1: JUEGO | L1: NUMERO
A2: 1 | B2: =+A16+1 -> 16 | C2: =+B16+1 -> 31 | D2: 46 | E2: 61 | G2: x | H2: x | I2: x | J2: x | K2: x | L2: =IF((AND(M2>0,M2<16))=TRUE,"B",IF((AND(M2>15,M2<31))=TRUE,"I",IF((AND(M2>30,M2<46))=TRUE,"N",IF((AND(M2>45,M2<61))=TRUE,"G","O")))) -> O | M2: =VLOOKUP((RANDBETWEEN((MIN(Q:Q)),(MAX(Q:Q)))),Q:R,2,0) -> 61
A3: 2 | B3: =+B2+1 -> 17 | C3: =+C2+1 -> 32 | D3: 47 | E3: 62
A4: 3 | B4: =+B3+1 -> 18 | C4: 33 | D4: 48 | E4: 63
A5: 4 | B5: 19 | C5: 34 | D5: 49 | E5: 64 | G5: x | H5: x | I5: x | J5: x | K5: x
A6: 5 | B6: 20 | C6: 35 | D6: 50 | E6: 65
A7: 6 | B7: 21 | C7: 36 | D7: 51 | E7: 66
A8: 7 | B8: 22 | C8: 37 | D8: 52 | E8: 67 | G8: x | H8: x | I8: NULO | J8: x | K8: x | O8: TOMBOLA
A9: 8 | B9: 23 | C9: 38 | D9: 53 | E9: 68
A10: 9 | B10: 24 | C10: 39 | D10: 54 | E10: 69
A11: 10 | B11: 25 | C11: 40 | D11: 55 | E11: 70 | G11: x | H11: x | I11: x | J11: x | K11: x
A12: 11 | B12: 26 | C12: 41 | D12: 56 | E12: 71
A13: 12 | B13: 27 | C13: 42 | D13: 57 | E13: 72
A14: 13 | B14: 28 | C14: 43 | D14: 58 | E14: 73 | G14: x | H14: x | I14: x | J14: x | K14: x
A15: 14 | B15: 29 | C15: 44 | D15: 59 | E15: 74
A16: 15 | B16: 30 | C16: 45 | D16: 60 | E16: 75
C18: ORDEN | D18: NUMERO
A19: 3 | C19: =IF((COUNTIF($A$19:$A$93,D19))>0,0,1) -> 1 | D19: 1 | L19: Cartones Jugados
A20: 13 | C20: =IF((COUNTIF($A$19:$A$93,D20))>0,0,(MAX($C$18:C19)+1)) -> 2 | D20: 2
A21: 11 | C21: =IF((COUNTIF($A$19:$A$93,D21))>0,0,(MAX($C$18:C20)+1)) -> 0 | D21: 3
A22: 5 | C22: =IF((COUNTIF($A$19:$A$93,D22))>0,0,(MAX($C$18:C21)+1)) -> 0 | D22: 4
A23: 4 | C23: =IF((COUNTIF($A$19:$A$93,D23))>0,0,(MAX($C$18:C22)+1)) -> 0 | D23: 5
A24: 21 | C24: =IF((COUNTIF($A$19:$A$93,D24))>0,0,(MAX($C$18:C23)+1)) -> 3 | D24: 6
A25: 22 | C25: =IF((COUNTIF($A$19:$A$93,D25))>0,0,(MAX($C$18:C24)+1)) -> 4 | D25: 7
A26: 17 | C26: =IF((COUNTIF($A$19:$A$93,D26))>0,0,(MAX($C$18:C25)+1)) -> 5 | D26: 8
A27: 29 | C27: =IF((COUNTIF($A$19:$A$93,D27))>0,0,(MAX($C$18:C26)+1)) -> 6 | D27: 9
A28: 20 | C28: =IF((COUNTIF($A$19:$A$93,D28))>0,0,(MAX($C$18:C27)+1)) -> 7 | D28: 10
A29: 31 | C29: =IF((COUNTIF($A$19:$A$93,D29))>0,0,(MAX($C$18:C28)+1)) -> 0 | D29: 11
A30: 32 | C30: =IF((COUNTIF($A$19:$A$93,D30))>0,0,(MAX($C$18:C29)+1)) -> 8 | D30: 12
A31: 41 | C31: =IF((COUNTIF($A$19:$A$93,D31))>0,0,(MAX($C$18:C30)+1)) -> 0 | D31: 13
A32: 35 | C32: =IF((COUNTIF($A$19:$A$93,D32))>0,0,(MAX($C$18:C31)+1)) -> 9 | D32: 14
A33: 59 | C33: =IF((COUNTIF($A$19:$A$93,D33))>0,0,(MAX($C$18:C32)+1)) -> 10 | D33: 15
A34: 46 | C34: =IF((COUNTIF($A$19:$A$93,D34))>0,0,(MAX($C$18:C33)+1)) -> 11 | D34: 16
A35: 48 | C35: =IF((COUNTIF($A$19:$A$93,D35))>0,0,(MAX($C$18:C34)+1)) -> 0 | D35: 17
A36: 54 | C36: =IF((COUNTIF($A$19:$A$93,D36))>0,0,(MAX($C$18:C35)+1)) -> 12 | D36: 18
A37: 47 | C37: =IF((COUNTIF($A$19:$A$93,D37))>0,0,(MAX($C$18:C36)+1)) -> 13 | D37: 19
A38: 71 | C38: =IF((COUNTIF($A$19:$A$93,D38))>0,0,(MAX($C$18:C37)+1)) -> 0 | D38: 20
A39: 72 | C39: =IF((COUNTIF($A$19:$A$93,D39))>0,0,(MAX($C$18:C38)+1)) -> 0 | D39: 21
A40: 73 | C40: =IF((COUNTIF($A$19:$A$93,D40))>0,0,(MAX($C$18:C39)+1)) -> 0 | D40: 22
A41: 68 | C41: =IF((COUNTIF($A$19:$A$93,D41))>0,0,(MAX($C$18:C40)+1)) -> 14 | D41: 23
A42: 75 | C42: =IF((COUNTIF($A$19:$A$93,D42))>0,0,(MAX($C$18:C41)+1)) -> 15 | D42: 24
C43: =IF((COUNTIF($A$19:$A$93,D43))>0,0,(MAX($C$18:C42)+1)) -> 16 | D43: 25
C44: =IF((COUNTIF($A$19:$A$93,D44))>0,0,(MAX($C$18:C43)+1)) -> 17 | D44: 26
C45: =IF((COUNTIF($A$19:$A$93,D45))>0,0,(MAX($C$18:C44)+1)) -> 18 | D45: 27
C46: =IF((COUNTIF($A$19:$A$93,D46))>0,0,(MAX($C$18:C45)+1)) -> 19 | D46: 28
C47: =IF((COUNTIF($A$19:$A$93,D47))>0,0,(MAX($C$18:C46)+1)) -> 0 | D47: 29
C48: =IF((COUNTIF($A$19:$A$93,D48))>0,0,(MAX($C$18:C47)+1)) -> 20 | D48: 30
C49: =IF((COUNTIF($A$19:$A$93,D49))>0,0,(MAX($C$18:C48)+1)) -> 0 | D49: 31
C50: =IF((COUNTIF($A$19:$A$93,D50))>0,0,(MAX($C$18:C49)+1)) -> 0 | D50: 32
C51: =IF((COUNTIF($A$19:$A$93,D51))>0,0,(MAX($C$18:C50)+1)) -> 21 | D51: 33
C52: =IF((COUNTIF($A$19:$A$93,D52))>0,0,(MAX($C$18:C51)+1)) -> 22 | D52: 34
C53: =IF((COUNTIF($A$19:$A$93,D53))>0,0,(MAX($C$18:C52)+1)) -> 0 | D53: 35
C54: =IF((COUNTIF($A$19:$A$93,D54))>0,0,(MAX($C$18:C53)+1)) -> 23 | D54: 36
C55: =IF((COUNTIF($A$19:$A$93,D55))>0,0,(MAX($C$18:C54)+1)) -> 24 | D55: 37
C56: =IF((COUNTIF($A$19:$A$93,D56))>0,0,(MAX($C$18:C55)+1)) -> 25 | D56: 38
C57: =IF((COUNTIF($A$19:$A$93,D57))>0,0,(MAX($C$18:C56)+1)) -> 26 | D57: 39
C58: =IF((COUNTIF($A$19:$A$93,D58))>0,0,(MAX($C$18:C57)+1)) -> 27 | D58: 40
C59: =IF((COUNTIF($A$19:$A$93,D59))>0,0,(MAX($C$18:C58)+1)) -> 0 | D59: 41
C60: =IF((COUNTIF($A$19:$A$93,D60))>0,0,(MAX($C$18:C59)+1)) -> 28 | D60: 42
C61: =IF((COUNTIF($A$19:$A$93,D61))>0,0,(MAX($C$18:C60)+1)) -> 29 | D61: 43
C62: =IF((COUNTIF($A$19:$A$93,D62))>0,0,(MAX($C$18:C61)+1)) -> 30 | D62: 44
C63: =IF((COUNTIF($A$19:$A$93,D63))>0,0,(MAX($C$18:C62)+1)) -> 31 | D63: 45
C64: =IF((COUNTIF($A$19:$A$93,D64))>0,0,(MAX($C$18:C63)+1)) -> 0 | D64: 46
C65: =IF((COUNTIF($A$19:$A$93,D65))>0,0,(MAX($C$18:C64)+1)) -> 0 | D65: 47
C66: =IF((COUNTIF($A$19:$A$93,D66))>0,0,(MAX($C$18:C65)+1)) -> 0 | D66: 48
C67: =IF((COUNTIF($A$19:$A$93,D67))>0,0,(MAX($C$18:C66)+1)) -> 32 | D67: 49
C68: =IF((COUNTIF($A$19:$A$93,D68))>0,0,(MAX($C$18:C67)+1)) -> 33 | D68: 50
C69: =IF((COUNTIF($A$19:$A$93,D69))>0,0,(MAX($C$18:C68)+1)) -> 34 | D69: 51
C70: =IF((COUNTIF($A$19:$A$93,D70))>0,0,(MAX($C$18:C69)+1)) -> 35 | D70: 52
C71: =IF((COUNTIF($A$19:$A$93,D71))>0,0,(MAX($C$18:C70)+1)) -> 36 | D71: 53
C72: =IF((COUNTIF($A$19:$A$93,D72))>0,0,(MAX($C$18:C71)+1)) -> 0 | D72: 54
C73: =IF((COUNTIF($A$19:$A$93,D73))>0,0,(MAX($C$18:C72)+1)) -> 37 | D73: 55
C74: =IF((COUNTIF($A$19:$A$93,D74))>0,0,(MAX($C$18:C73)+1)) -> 38 | D74: 56
C75: =IF((COUNTIF($A$19:$A$93,D75))>0,0,(MAX($C$18:C74)+1)) -> 39 | D75: 57
C76: =IF((COUNTIF($A$19:$A$93,D76))>0,0,(MAX($C$18:C75)+1)) -> 40 | D76: 58
C77: =IF((COUNTIF($A$19:$A$93,D77))>0,0,(MAX($C$18:C76)+1)) -> 0 | D77: 59
C78: =IF((COUNTIF($A$19:$A$93,D78))>0,0,(MAX($C$18:C77)+1)) -> 41 | D78: 60
C79: =IF((COUNTIF($A$19:$A$93,D79))>0,0,(MAX($C$18:C78)+1)) -> 42 | D79: 61
C80: =IF((COUNTIF($A$19:$A$93,D80))>0,0,(MAX($C$18:C79)+1)) -> 43 | D80: 62
C81: =IF((COUNTIF($A$19:$A$93,D81))>0,0,(MAX($C$18:C80)+1)) -> 44 | D81: 63
C82: =IF((COUNTIF($A$19:$A$93,D82))>0,0,(MAX($C$18:C81)+1)) -> 45 | D82: 64
C83: =IF((COUNTIF($A$19:$A$93,D83))>0,0,(MAX($C$18:C82)+1)) -> 46 | D83: 65
C84: =IF((COUNTIF($A$19:$A$93,D84))>0,0,(MAX($C$18:C83)+1)) -> 47 | D84: 66
C85: =IF((COUNTIF($A$19:$A$93,D85))>0,0,(MAX($C$18:C84)+1)) -> 48 | D85: 67
C86: =IF((COUNTIF($A$19:$A$93,D86))>0,0,(MAX($C$18:C85)+1)) -> 0 | D86: 68
C87: =IF((COUNTIF($A$19:$A$93,D87))>0,0,(MAX($C$18:C86)+1)) -> 49 | D87: 69
C88: =IF((COUNTIF($A$19:$A$93,D88))>0,0,(MAX($C$18:C87)+1)) -> 50 | D88: 70
C89: =IF((COUNTIF($A$19:$A$93,D89))>0,0,(MAX($C$18:C88)+1)) -> 0 | D89: 71
C90: =IF((COUNTIF($A$19:$A$93,D90))>0,0,(MAX($C$18:C89)+1)) -> 0 | D90: 72
C91: =IF((COUNTIF($A$19:$A$93,D91))>0,0,(MAX($C$18:C90)+1)) -> 0 | D91: 73
C92: =IF((COUNTIF($A$19:$A$93,D92))>0,0,(MAX($C$18:C91)+1)) -> 51 | D92: 74
C93: =IF((COUNTIF($A$19:$A$93,D93))>0,0,(MAX($C$18:C92)+1)) -> 0 | D93: 75
Q100: ORDEN | R100: NUMERO
Q101: 1 | R101: 1
Q102: 2 | R102: 2
Q103: 3 | R103: 3
Q104: 4 | R104: 4
Q105: 5 | R105: 5
Q106: 6 | R106: 6
Q107: 7 | R107: 7
Q108: 8 | R108: 8
Q109: 9 | R109: 9
Q110: 10 | R110: 10
Q111: 11 | R111: 11
Q112: 12 | R112: 12
Q113: 13 | R113: 13
Q114: 14 | R114: 14
Q115: 15 | R115: 15
Q116: 16 | R116: 16
Q117: 17 | R117: 17
Q118: 18 | R118: 18
Q119: 19 | R119: 19
Q120: 20 | R120: 20
Q121: 21 | R121: 21
Q122: 22 | R122: 22
Q123: 23 | R123: 23
Q124: 24 | R124: 24
Q125: 25 | R125: 25
Q126: 26 | R126: 26
Q127: 27 | R127: 27
Q128: 28 | R128: 28
Q129: 29 | R129: 29
Q130: 30 | R130: 30
Q131: 31 | R131: 31
Q132: 32 | R132: 32
Q133: 33 | R133: 33
Q134: 34 | R134: 34
Q135: 35 | R135: 35
Q136: 36 | R136: 36
Q137: 37 | R137: 37
Q138: 38 | R138: 38
Q139: 39 | R139: 39
Q140: 40 | R140: 40
Q141: 41 | R141: 41
Q142: 42 | R142: 42
Q143: 43 | R143: 43
Q144: 44 | R144: 44
Q145: 45 | R145: 45
Q146: 46 | R146: 46
Q147: 47 | R147: 47
Q148: 48 | R148: 48
Q149: 49 | R149: 49
Q150: 50 | R150: 50
Q151: 51 | R151: 51
Q152: 52 | R152: 52
Q153: 53 | R153: 53
Q154: 54 | R154: 54
Q155: 55 | R155: 55
Q156: 56 | R156: 56
Q157: 57 | R157: 57
Q158: 58 | R158: 58
Q159: 59 | R159: 59
Q160: 60 | R160: 60
Q161: 61 | R161: 61
Q162: 62 | R162: 62
Q163: 63 | R163: 63
Q164: 64 | R164: 64
Q165: 65 | R165: 65
Q166: 66 | R166: 66
Q167: 67 | R167: 67
Q168: 68 | R168: 68
Q169: 69 | R169: 69
Q170: 70 | R170: 70
Q171: 71 | R171: 71
Q172: 72 | R172: 72
Q173: 73 | R173: 73
Q174: 74 | R174: 74
Q175: 75 | R175: 75

Sheet rev aut
B2: B I N G O | H2: CARTON Nº | J2: B | K2: I | L2: N | M2: G | N2: O
B3: =+DICTADOS!G2 -> x | C3: =+DICTADOS!H2 -> x | D3: =+DICTADOS!I2 -> x | E3: =+DICTADOS!J2 -> x | F3: =+DICTADOS!K2 -> x | H3: 591 | J3: =INDIRECT("CARTONES!a"&P3) -> 13 | K3: =INDIRECT("CARTONES!b"&Q3) -> 16 | L3: =INDIRECT("CARTONES!c"&R3) -> 32 | M3: =INDIRECT("CARTONES!d"&S3) -> 51 | N3: =INDIRECT("CARTONES!e"&T3) -> 73 | P3: =((H3*7)-7)+3 -> 4133 | Q3: =+P3 -> 4133 | R3: =+Q3 -> 4133 | S3: 4133 | T3: 4133
B6: =+DICTADOS!G5 -> x | C6: =+DICTADOS!H5 -> x | D6: =+DICTADOS!I5 -> x | E6: =+DICTADOS!J5 -> x | F6: =+DICTADOS!K5 -> x | J6: =INDIRECT("CARTONES!a"&P6) -> 15 | K6: =INDIRECT("CARTONES!b"&Q6) -> 29 | L6: =INDIRECT("CARTONES!c"&R6) -> 31 | M6: =INDIRECT("CARTONES!d"&S6) -> 49 | N6: =INDIRECT("CARTONES!e"&T6) -> 72 | P6: =+P3+1 -> 4134 | Q6: =+Q3+1 -> 4134 | R6: 4134 | S6: 4134 | T6: 4134
B9: =+DICTADOS!G8 -> x | C9: =+DICTADOS!H8 -> x | D9: =+DICTADOS!I8 -> NULO | E9: =+DICTADOS!J8 -> x | F9: =+DICTADOS!K8 -> x | J9: =INDIRECT("CARTONES!a"&P9) -> 12 | K9: =INDIRECT("CARTONES!b"&Q9) -> 19 | L9: =INDIRECT("CARTONES!c"&R9) -> 0 | M9: =INDIRECT("CARTONES!d"&S9) -> 47 | N9: =INDIRECT("CARTONES!e"&T9) -> 65 | P9: =+P6+1 -> 4135 | Q9: =+P9 -> 4135 | R9: =+Q9 -> 4135 | S9: =+R9 -> 4135 | T9: =+S9 -> 4135
H11: DESEA VALIDAR CARTONES JUGADOS?
B12: =+DICTADOS!G11 -> x | C12: =+DICTADOS!H11 -> x | D12: =+DICTADOS!I11 -> x | E12: =+DICTADOS!J11 -> x | F12: =+DICTADOS!K11 -> x | H12: SI | J12: =INDIRECT("CARTONES!a"&P12) -> 2 | K12: =INDIRECT("CARTONES!b"&Q12) -> 30 | L12: =INDIRECT("CARTONES!c"&R12) -> 43 | M12: =INDIRECT("CARTONES!d"&S12) -> 52 | N12: =INDIRECT("CARTONES!e"&T12) -> 66 | P12: =+P9+1 -> 4136 | Q12: =+P12 -> 4136 | R12: =+Q12 -> 4136 | S12: =+R12 -> 4136 | T12: =+S12 -> 4136
H14: =IF((AND(COUNTIF('cartones jugados'!E:E,H3)>0,H12="SI"))=TRUE,"CARTON INVALIDO (JUGADO)","") -> 
B15: =+DICTADOS!G14 -> x | C15: =+DICTADOS!H14 -> x | D15: =+DICTADOS!I14 -> x | E15: =+DICTADOS!J14 -> x | F15: =+DICTADOS!K14 -> x | J15: =INDIRECT("CARTONES!a"&P15) -> 1 | K15: =INDIRECT("CARTONES!b"&Q15) -> 18 | L15: =INDIRECT("CARTONES!c"&R15) -> 39 | M15: =INDIRECT("CARTONES!d"&S15) -> 46 | N15: =INDIRECT("CARTONES!e"&T15) -> 69 | P15: =+P12+1 -> 4137 | Q15: =+P15 -> 4137 | R15: =+Q15 -> 4137 | S15: =+R15 -> 4137 | T15: =+S15 -> 4137
B30: =+DICTADOS!A19 -> 3
B31: =+DICTADOS!A20 -> 13
B32: =+DICTADOS!A21 -> 11
B33: =+DICTADOS!A22 -> 5
B34: =+DICTADOS!A23 -> 4
B35: =+DICTADOS!A24 -> 21
B36: =+DICTADOS!A25 -> 22
B37: =+DICTADOS!A26 -> 17
B38: =+DICTADOS!A27 -> 29
B39: =+DICTADOS!A28 -> 20
B40: =+DICTADOS!A29 -> 31
B41: =+DICTADOS!A30 -> 32
B42: =+DICTADOS!A31 -> 41
B43: =+DICTADOS!A32 -> 35
B44: =+DICTADOS!A33 -> 59
B45: =+DICTADOS!A34 -> 46
B46: =+DICTADOS!A35 -> 48
B47: =+DICTADOS!A36 -> 54
B48: =+DICTADOS!A37 -> 47
B49: =+DICTADOS!A38 -> 71
B50: =+DICTADOS!A39 -> 72
B51: =+DICTADOS!A40 -> 73
B52: =+DICTADOS!A41 -> 68
B53: =+DICTADOS!A42 -> 75
B54: =+DICTADOS!A43 -> 0
B55: =+DICTADOS!A44 -> 0
B56: =+DICTADOS!A45 -> 0
B57: =+DICTADOS!A46 -> 0
B58: =+DICTADOS!A47 -> 0
B59: =+DICTADOS!A48 -> 0
B60: =+DICTADOS!A49 -> 0
B61: =+DICTADOS!A50 -> 0
B62: =+DICTADOS!A51 -> 0
B63: =+DICTADOS!A52 -> 0
B64: =+DICTADOS!A53 -> 0
B65: =+DICTADOS!A54 -> 0
B66: =+DICTADOS!A55 -> 0
B67: =+DICTADOS!A56 -> 0
B68: =+DICTADOS!A57 -> 0
B69: =+DICTADOS!A58 -> 0
B70: =+DICTADOS!A59 -> 0
B71: =+DICTADOS!A60 -> 0
B72: =+DICTADOS!A61 -> 0
B73: =+DICTADOS!A62 -> 0
B74: =+DICTADOS!A63 -> 0
B75: =+DICTADOS!A64 -> 0
B76: =+DICTADOS!A65 -> 0
B77: =+DICTADOS!A66 -> 0
B78: =+DICTADOS!A67 -> 0
B79: =+DICTADOS!A68 -> 0
B80: =+DICTADOS!A69 -> 0
B81: =+DICTADOS!A70 -> 0
B82: =+DICTADOS!A71 -> 0
B83: =+DICTADOS!A72 -> 0
B84: =+DICTADOS!A73 -> 0
B85: =+DICTADOS!A74 -> 0
B86: =+DICTADOS!A75 -> 0
B87: =+DICTADOS!A76 -> 0
B88: =+DICTADOS!A77 -> 0
B89: =+DICTADOS!A78 -> 0
B90: =+DICTADOS!A79 -> 0
B91: =+DICTADOS!A80 -> 0
B92: =+DICTADOS!A81 -> 0
B93: =+DICTADOS!A82 -> 0
B94: =+DICTADOS!A83 -> 0
B95: =+DICTADOS!A84 -> 0
B96: =+DICTADOS!A85 -> 0
B97: =+DICTADOS!A86 -> 0
B98: =+DICTADOS!A87 -> 0
B99: =+DICTADOS!A88 -> 0
B100: =+DICTADOS!A89 -> 0
B101: =+DICTADOS!A90 -> 0
B102: =+DICTADOS!A91 -> 0
B103: =+DICTADOS!A92 -> 0
B104: =+DICTADOS!A93 -> 0

Sheet rev manual
A1: NÚMEROS DICTADOS | C1: NÚMEROS DE CARTÒN
A2: =+DICTADOS!A19 -> 3
A3: =+DICTADOS!A20 -> 13
A4: =+DICTADOS!A21 -> 11
A5: =+DICTADOS!A22 -> 5
A6: =+DICTADOS!A23 -> 4
A7: =+DICTADOS!A24 -> 21
A8: =+DICTADOS!A25 -> 22
A9: =+DICTADOS!A26 -> 17
A10: =+DICTADOS!A27 -> 29
A11: =+DICTADOS!A28 -> 20
A12: =+DICTADOS!A29 -> 31
A13: =+DICTADOS!A30 -> 32
A14: =+DICTADOS!A31 -> 41
A15: =+DICTADOS!A32 -> 35
A16: =+DICTADOS!A33 -> 59
A17: =+DICTADOS!A34 -> 46
A18: =+DICTADOS!A35 -> 48
A19: =+DICTADOS!A36 -> 54
A20: =+DICTADOS!A37 -> 47
A21: =+DICTADOS!A38 -> 71
A22: =+DICTADOS!A39 -> 72
A23: =+DICTADOS!A40 -> 73
A24: =+DICTADOS!A41 -> 68
A25: =+DICTADOS!A42 -> 75
A26: =+DICTADOS!A43 -> 0
A27: =+DICTADOS!A44 -> 0
A28: =+DICTADOS!A45 -> 0
A29: =+DICTADOS!A46 -> 0
A30: =+DICTADOS!A47 -> 0
A31: =+DICTADOS!A48 -> 0
A32: =+DICTADOS!A49 -> 0
A33: =+DICTADOS!A50 -> 0
A34: =+DICTADOS!A51 -> 0
A35: =+DICTADOS!A52 -> 0
A36: =+DICTADOS!A53 -> 0
A37: =+DICTADOS!A54 -> 0
A38: =+DICTADOS!A55 -> 0
A39: =+DICTADOS!A56 -> 0
A40: =+DICTADOS!A57 -> 0
A41: =+DICTADOS!A58 -> 0
A42: =+DICTADOS!A59 -> 0
A43: =+DICTADOS!A60 -> 0
A44: =+DICTADOS!A61 -> 0
A45: =+DICTADOS!A62 -> 0
A46: =+DICTADOS!A63 -> 0
A47: =+DICTADOS!A64 -> 0
A48: =+DICTADOS!A65 -> 0
A49: =+DICTADOS!A66 -> 0
A50: =+DICTADOS!A67 -> 0
A51: =+DICTADOS!A68 -> 0
A52: =+DICTADOS!A69 -> 0
A53: =+DICTADOS!A70 -> 0
A54: =+DICTADOS!A71 -> 0
A55: =+DICTADOS!A72 -> 0
A56: =+DICTADOS!A73 -> 0
A57: =+DICTADOS!A74 -> 0
A58: =+DICTADOS!A75 -> 0
A59: =+DICTADOS!A76 -> 0
A60: =+DICTADOS!A77 -> 0
A61: =+DICTADOS!A78 -> 0
A62: =+DICTADOS!A79 -> 0
A63: =+DICTADOS!A80 -> 0
A64: =+DICTADOS!A81 -> 0
A65: =+DICTADOS!A82 -> 0
A66: =+DICTADOS!A83 -> 0
A67: =+DICTADOS!A84 -> 0
A68: =+DICTADOS!A85 -> 0
A69: =+DICTADOS!A86 -> 0
A70: =+DICTADOS!A87 -> 0
A71: =+DICTADOS!A88 -> 0
A72: =+DICTADOS!A89 -> 0
A73: =+DICTADOS!A90 -> 0
A74: =+DICTADOS!A91 -> 0
A75: =+DICTADOS!A92 -> 0
A76: =+DICTADOS!A93 -> 0

Sheet D
B2: 18 | H2: Parroquia
B3: B | C3: I | D3: N | E3: G | F3: O | H3: Nuestra Señora del Carmen
B4: 14 | C4: 19 | D4: 44 | E4: 58 | F4: 63
B5: 13 | C5: 20 | D5: 42 | E5: 54 | F5: 72
B6: 9 | C6: 27 | E6: 53 | F6: 69
B7: 5 | C7: 21 | D7: 43 | E7: 52 | F7: 61 | H7: Apoyemos Nuestra Parroquia
B8: 11 | C8: 24 | D8: 31 | E8: 49 | F8: 67
P11: =RANDBETWEEN(1,15) -> 15 | R11: =RANDBETWEEN(16,30) -> 17 | T11: =RANDBETWEEN(31,45) -> 38 | V11: =RANDBETWEEN(46,60) -> 56 | X11: =RANDBETWEEN(61,75) -> 73
P12: =RANDBETWEEN(MIN(P15:P29),MAX(P15:P29)) -> 8 | Q12: =VLOOKUP(P12,P15:Q29,2,0) -> 10 | R12: =RANDBETWEEN(MIN(R15:R29),MAX(R15:R29)) -> 16 | S12: =VLOOKUP(R12,R15:S29,2,0) -> 16 | T12: =RANDBETWEEN(MIN(T15:T29),MAX(T15:T29)) -> 31 | U12: =VLOOKUP(T12,T15:U29,2,0) -> 31 | V12: =RANDBETWEEN(MIN(V15:V29),MAX(V15:V29)) -> 46 | W12: =VLOOKUP(V12,V15:W29,2,0) -> 46 | X12: =RANDBETWEEN(MIN(X15:X29),MAX(X15:X29)) -> 7 | Y12: =VLOOKUP(X12,X15:Y29,2,0) -> 71
J14: B | K14: I | L14: N | M14: G | N14: O | P14: B | R14: I | T14: N | V14: G | X14: O
J15: 14 | K15: 19 | L15: 44 | M15: 58 | N15: 63 | P15: =IF((COUNTIF($J$15:$J$19,Q15))>0,"",1) -> 1 | Q15: 1 | R15: =IF((COUNTIF($K$15:$K$19,S15))>0,"",16) -> 16 | S15: 16 | T15: =IF((COUNTIF($L$15:$L$19,S15))>0,"",31) -> 31 | U15: 31 | V15: =IF((COUNTIF($M$15:$M$19,W15))>0,"",46) -> 46 | W15: 46 | X15: =IF((COUNTIF($N$15:$N$19,Y15))>0,"",61) ->  | Y15: 61
J16: 13 | K16: 20 | L16: 42 | M16: 54 | N16: 72 | P16: =IF((COUNTIF($J$15:$J$19,Q16))>0,"",(MAX($P$14:P15)+1)) -> 2 | Q16: 2 | R16: =IF((COUNTIF($K$15:$K$19,S16))>0,"",(MAX($R$14:R15)+1)) -> 17 | S16: 17 | T16: =IF((COUNTIF($L$15:$L$19,U16))>0,"",(MAX($T$14:T15)+1)) -> 32 | U16: 32 | V16: =IF((COUNTIF($M$15:$M$19,W16))>0,"",(MAX($V$14:V15)+1)) -> 47 | W16: 47 | X16: =IF((COUNTIF($N$15:$N$19,Y16))>0,"",(MAX($X$14:X15)+1)) -> 1 | Y16: 62
J17: 9 | K17: 27 | L17: 45 | M17: 53 | N17: 69 | P17: =IF((COUNTIF($J$15:$J$19,Q17))>0,"",(MAX($P$14:P16)+1)) -> 3 | Q17: 3 | R17: =IF((COUNTIF($K$15:$K$19,S17))>0,"",(MAX($R$14:R16)+1)) -> 18 | S17: 18 | T17: =IF((COUNTIF($L$15:$L$19,U17))>0,"",(MAX($T$14:T16)+1)) -> 33 | U17: 33 | V17: =IF((COUNTIF($M$15:$M$19,W17))>0,"",(MAX($V$14:V16)+1)) -> 48 | W17: 48 | X17: =IF((COUNTIF($N$15:$N$19,Y17))>0,"",(MAX($X$14:X16)+1)) ->  | Y17: 63
J18: 5 | K18: 21 | L18: 43 | M18: 52 | N18: 61 | P18: =IF((COUNTIF($J$15:$J$19,Q18))>0,"",(MAX($P$14:P17)+1)) -> 4 | Q18: 4 | R18: =IF((COUNTIF($K$15:$K$19,S18))>0,"",(MAX($R$14:R17)+1)) ->  | S18: 19 | T18: =IF((COUNTIF($L$15:$L$19,U18))>0,"",(MAX($T$14:T17)+1)) -> 34 | U18: 34 | V18: =IF((COUNTIF($M$15:$M$19,W18))>0,"",(MAX($V$14:V17)+1)) ->  | W18: 49 | X18: =IF((COUNTIF($N$15:$N$19,Y18))>0,"",(MAX($X$14:X17)+1)) -> 2 | Y18: 64
J19: 11 | K19: 24 | L19: 31 | M19: 49 | N19: 67 | P19: =IF((COUNTIF($J$15:$J$19,Q19))>0,"",(MAX($P$14:P18)+1)) ->  | Q19: 5 | R19: =IF((COUNTIF($K$15:$K$19,S19))>0,"",(MAX($R$14:R18)+1)) ->  | S19: 20 | T19: =IF((COUNTIF($L$15:$L$19,U19))>0,"",(MAX($T$14:T18)+1)) -> 35 | U19: 35 | V19: =IF((COUNTIF($M$15:$M$19,W19))>0,"",(MAX($V$14:V18)+1)) -> 49 | W19: 50 | X19: =IF((COUNTIF($N$15:$N$19,Y19))>0,"",(MAX($X$14:X18)+1)) -> 3 | Y19: 65
P20: =IF((COUNTIF($J$15:$J$19,Q20))>0,"",(MAX($P$14:P19)+1)) -> 5 | Q20: 6 | R20: =IF((COUNTIF($K$15:$K$19,S20))>0,"",(MAX($R$14:R19)+1)) ->  | S20: 21 | T20: =IF((COUNTIF($L$15:$L$19,U20))>0,"",(MAX($T$14:T19)+1)) -> 36 | U20: 36 | V20: =IF((COUNTIF($M$15:$M$19,W20))>0,"",(MAX($V$14:V19)+1)) -> 50 | W20: 51 | X20: =IF((COUNTIF($N$15:$N$19,Y20))>0,"",(MAX($X$14:X19)+1)) -> 4 | Y20: 66
P21: =IF((COUNTIF($J$15:$J$19,Q21))>0,"",(MAX($P$14:P20)+1)) -> 6 | Q21: 7 | R21: =IF((COUNTIF($K$15:$K$19,S21))>0,"",(MAX($R$14:R20)+1)) -> 19 | S21: 22 | T21: =IF((COUNTIF($L$15:$L$19,U21))>0,"",(MAX($T$14:T20)+1)) -> 37 | U21: 37 | V21: =IF((COUNTIF($M$15:$M$19,W21))>0,"",(MAX($V$14:V20)+1)) ->  | W21: 52 | X21: =IF((COUNTIF($N$15:$N$19,Y21))>0,"",(MAX($X$14:X20)+1)) ->  | Y21: 67
P22: =IF((COUNTIF($J$15:$J$19,Q22))>0,"",(MAX($P$14:P21)+1)) -> 7 | Q22: 8 | R22: =IF((COUNTIF($K$15:$K$19,S22))>0,"",(MAX($R$14:R21)+1)) -> 20 | S22: 23 | T22: =IF((COUNTIF($L$15:$L$19,U22))>0,"",(MAX($T$14:T21)+1)) -> 38 | U22: 38 | V22: =IF((COUNTIF($M$15:$M$19,W22))>0,"",(MAX($V$14:V21)+1)) ->  | W22: 53 | X22: =IF((COUNTIF($N$15:$N$19,Y22))>0,"",(MAX($X$14:X21)+1)) -> 5 | Y22: 68
P23: =IF((COUNTIF($J$15:$J$19,Q23))>0,"",(MAX($P$14:P22)+1)) ->  | Q23: 9 | R23: =IF((COUNTIF($K$15:$K$19,S23))>0,"",(MAX($R$14:R22)+1)) ->  | S23: 24 | T23: =IF((COUNTIF($L$15:$L$19,U23))>0,"",(MAX($T$14:T22)+1)) -> 39 | U23: 39 | V23: =IF((COUNTIF($M$15:$M$19,W23))>0,"",(MAX($V$14:V22)+1)) ->  | W23: 54 | X23: =IF((COUNTIF($N$15:$N$19,Y23))>0,"",(MAX($X$14:X22)+1)) ->  | Y23: 69
P24: =IF((COUNTIF($J$15:$J$19,Q24))>0,"",(MAX($P$14:P23)+1)) -> 8 | Q24: 10 | R24: =IF((COUNTIF($K$15:$K$19,S24))>0,"",(MAX($R$14:R23)+1)) -> 21 | S24: 25 | T24: =IF((COUNTIF($L$15:$L$19,U24))>0,"",(MAX($T$14:T23)+1)) -> 40 | U24: 40 | V24: =IF((COUNTIF($M$15:$M$19,W24))>0,"",(MAX($V$14:V23)+1)) -> 51 | W24: 55 | X24: =IF((COUNTIF($N$15:$N$19,Y24))>0,"",(MAX($X$14:X23)+1)) -> 6 | Y24: 70
P25: =IF((COUNTIF($J$15:$J$19,Q25))>0,"",(MAX($P$14:P24)+1)) ->  | Q25: 11 | R25: =IF((COUNTIF($K$15:$K$19,S25))>0,"",(MAX($R$14:R24)+1)) -> 22 | S25: 26 | T25: =IF((COUNTIF($L$15:$L$19,U25))>0,"",(MAX($T$14:T24)+1)) -> 41 | U25: 41 | V25: =IF((COUNTIF($M$15:$M$19,W25))>0,"",(MAX($V$14:V24)+1)) -> 52 | W25: 56 | X25: =IF((COUNTIF($N$15:$N$19,Y25))>0,"",(MAX($X$14:X24)+1)) -> 7 | Y25: 71
P26: =IF((COUNTIF($J$15:$J$19,Q26))>0,"",(MAX($P$14:P25)+1)) -> 9 | Q26: 12 | R26: =IF((COUNTIF($K$15:$K$19,S26))>0,"",(MAX($R$14:R25)+1)) ->  | S26: 27 | T26: =IF((COUNTIF($L$15:$L$19,U26))>0,"",(MAX($T$14:T25)+1)) ->  | U26: 42 | V26: =IF((COUNTIF($M$15:$M$19,W26))>0,"",(MAX($V$14:V25)+1)) -> 53 | W26: 57 | X26: =IF((COUNTIF($N$15:$N$19,Y26))>0,"",(MAX($X$14:X25)+1)) ->  | Y26: 72
P27: =IF((COUNTIF($J$15:$J$19,Q27))>0,"",(MAX($P$14:P26)+1)) ->  | Q27: 13 | R27: =IF((COUNTIF($K$15:$K$19,S27))>0,"",(MAX($R$14:R26)+1)) -> 23 | S27: 28 | T27: =IF((COUNTIF($L$15:$L$19,U27))>0,"",(MAX($T$14:T26)+1)) ->  | U27: 43 | V27: =IF((COUNTIF($M$15:$M$19,W27))>0,"",(MAX($V$14:V26)+1)) ->  | W27: 58 | X27: =IF((COUNTIF($N$15:$N$19,Y27))>0,"",(MAX($X$14:X26)+1)) -> 8 | Y27: 73
P28: =IF((COUNTIF($J$15:$J$19,Q28))>0,"",(MAX($P$14:P27)+1)) ->  | Q28: 14 | R28: =IF((COUNTIF($K$15:$K$19,S28))>0,"",(MAX($R$14:R27)+1)) -> 24 | S28: 29 | T28: =IF((COUNTIF($L$15:$L$19,U28))>0,"",(MAX($T$14:T27)+1)) ->  | U28: 44 | V28: =IF((COUNTIF($M$15:$M$19,W28))>0,"",(MAX($V$14:V27)+1)) -> 54 | W28: 59 | X28: =IF((COUNTIF($N$15:$N$19,Y28))>0,"",(MAX($X$14:X27)+1)) -> 9 | Y28: 74
P29: =IF((COUNTIF($J$15:$J$19,Q29))>0,"",(MAX($P$14:P28)+1)) -> 10 | Q29: 15 | R29: =IF((COUNTIF($K$15:$K$19,S29))>0,"",(MAX($R$14:R28)+1)) -> 25 | S29: 30 | T29: =IF((COUNTIF($L$15:$L$19,U29))>0,"",(MAX($T$14:T28)+1)) ->  | U29: 45 | V29: =IF((COUNTIF($M$15:$M$19,W29))>0,"",(MAX($V$14:V28)+1)) -> 55 | W29: 60 | X29: =IF((COUNTIF($N$15:$N$19,Y29))>0,"",(MAX($X$14:X28)+1)) -> 10 | Y29: 75

Sheet CARTONES
E1: 1
A3: 1 | B3: 18 | C3: 35 | D3: 58 | E3: 73
A4: 11 | B4: 28 | C4: 34 | D4: 56 | E4: 68
A5: 8 | B5: 27 | D5: 46 | E5: 71
A6: 4 | B6: 22 | C6: 33 | D6: 50 | E6: 64
A7: 7 | B7: 20 | C7: 36 | D7: 59 | E7: 74
E8: =+E1+1 -> 2
A10: 14 | B10: 24 | C10: 41 | D10: 53 | E10: 72
A11: 2 | B11: 30 | C11: 44 | D11: 59 | E11: 65
A12: 8 | B12: 17 | D12: 54 | E12: 69
A13: 1 | B13: 18 | C13: 31 | D13: 52 | E13: 70
A14: 15 | B14: 26 | C14: 33 | D14: 51 | E14: 74
E15: =+E8+1 -> 3
A17: 1 | B17: 21 | C17: 45 | D17: 51 | E17: 69
A18: 14 | B18: 16 | C18: 35 | D18: 57 | E18: 70
A19: 13 | B19: 28 | D19: 56 | E19: 75
A20: 4 | B20: 25 | C20: 40 | D20: 58 | E20: 72
A21: 15 | B21: 18 | C21: 37 | D21: 59 | E21: 66
E22: =+E15+1 -> 4
A24: 8 | B24: 27 | C24: 31 | D24: 49 | E24: 70
A25: 6 | B25: 21 | C25: 42 | D25: 54 | E25: 65
A26: 9 | B26: 18 | D26: 47 | E26: 69
A27: 2 | B27: 30 | C27: 34 | D27: 56 | E27: 67
A28: 7 | B28: 22 | C28: 41 | D28: 52 | E28: 64
E29: =+E22+1 -> 5
A31: 14 | B31: 30 | C31: 35 | D31: 53 | E31: 72
A32: 9 | B32: 27 | C32: 40 | D32: 52 | E32: 69
A33: 2 | B33: 17 | D33: 48 | E33: 62
A34: 7 | B34: 28 | C34: 38 | D34: 55 | E34: 66
A35: 12 | B35: 22 | C35: 41 | D35: 59 | E35: 75
E36: =+E29+1 -> 6
A38: 2 | B38: 19 | C38: 40 | D38: 57 | E38: 64
A39: 5 | B39: 22 | C39: 33 | D39: 47 | E39: 71
A40: 14 | B40: 20 | D40: 60 | E40: 62
A41: 4 | B41: 17 | C41: 37 | D41: 49 | E41: 61
A42: 9 | B42: 25 | C42: 36 | D42: 58 | E42: 65
E43: =+E36+1 -> 7
A45: 10 | B45: 18 | C45: 31 | D45: 60 | E45: 71
A46: 12 | B46: 20 | C46: 41 | D46: 56 | E46: 75
A47: 5 | B47: 26 | D47: 59 | E47: 68
A48: 13 | B48: 28 | C48: 32 | D48: 48 | E48: 63
A49: 15 | B49: 30 | C49: 34 | D49: 54 | E49: 73
E50: =+E43+1 -> 8
A52: 4 | B52: 20 | C52: 35 | D52: 59 | E52: 62
A53: 1 | B53: 28 | C53: 40 | D53: 57 | E53: 69
A54: 7 | B54: 26 | D54: 52 | E54: 75
A55: 14 | B55: 22 | C55: 42 | D55: 47 | E55: 74
A56: 5 | B56: 25 | C56: 41 | D56: 60 | E56: 68
E57: =+E50+1 -> 9
A59: 15 | B59: 17 | C59: 43 | D59: 55 | E59: 67
A60: 14 | B60: 24 | C60: 44 | D60: 51 | E60: 63
A61: 1 | B61: 25 | D61: 48 | E61: 71
A62: 3 | B62: 18 | C62: 37 | D62: 56 | E62: 61
A63: 7 | B63: 30 | C63: 31 | D63: 60 | E63: 72
E64: =+E57+1 -> 10
A66: 8 | B66: 18 | C66: 38 | D66: 53 | E66: 67
A67: 2 | B67: 27 | C67: 42 | D67: 60 | E67: 65
A68: 12 | B68: 16 | D68: 58 | E68: 71
A69: 3 | B69: 19 | C69: 33 | D69: 57 | E69: 61
A70: 9 | B70: 20 | C70: 40 | D70: 48 | E70: 68
E71: =+E64+1 -> 11
A73: 9 | B73: 24 | C73: 40 | D73: 49 | E73: 61
A74: 11 | B74: 18 | C74: 31 | D74: 53 | E74: 63
A75: 5 | B75: 25 | D75: 54 | E75: 69
A76: 2 | B76: 21 | C76: 43 | D76: 55 | E76: 65
A77: 3 | B77: 16 | C77: 39 | D77: 58 | E77: 72
E78: =+E71+1 -> 12
A80: 12 | B80: 27 | C80: 39 | D80: 60 | E80: 67
A81: 8 | B81: 28 | C81: 43 | D81: 46 | E81: 63
A82: 1 | B82: 29 | D82: 54 | E82: 75
A83: 4 | B83: 18 | C83: 36 | D83: 57 | E83: 66
A84: 9 | B84: 22 | C84: 45 | D84: 53 | E84: 68
E85: =+E78+1 -> 13
A87: 5 | B87: 19 | C87: 45 | D87: 46 | E87: 70
A88: 8 | B88: 30 | C88: 42 | D88: 49 | E88: 72
A89: 2 | B89: 16 | D89: 59 | E89: 69
A90: 14 | B90: 17 | C90: 31 | D90: 53 | E90: 68
A91: 1 | B91: 22 | C91: 35 | D91: 54 | E91: 67
E92: =+E85+1 -> 14
A94: 8 | B94: 23 | C94: 31 | D94: 57 | E94: 63
A95: 6 | B95: 26 | C95: 32 | D95: 48 | E95: 71
A96: 11 | B96: 21 | D96: 46 | E96: 69
A97: 3 | B97: 25 | C97: 34 | D97: 49 | E97: 70
A98: 1 | B98: 27 | C98: 36 | D98: 60 | E98: 68
E99: =+E92+1 -> 15
A101: 12 | B101: 29 | C101: 41 | D101: 52 | E101: 75
A102: 5 | B102: 16 | C102: 31 | D102: 50 | E102: 61
A103: 1 | B103: 27 | D103: 57 | E103: 70
A104: 2 | B104: 20 | C104: 44 | D104: 48 | E104: 68
A105: 9 | B105: 30 | C105: 38 | D105: 60 | E105: 62
E106: =+E99+1 -> 16
A108: 12 | B108: 16 | C108: 42 | D108: 60 | E108: 61
A109: 6 | B109: 26 | C109: 31 | D109: 58 | E109: 66
A110: 1 | B110: 20 | D110: 57 | E110: 69
A111: 8 | B111: 18 | C111: 37 | D111: 54 | E111: 70
A112: 2 | B112: 24 | C112: 38 | D112: 52 | E112: 72
E113: =+E106+1 -> 17
A115: 6 | B115: 21 | C115: 43 | D115: 58 | E115: 71
A116: 9 | B116: 16 | C116: 34 | D116: 59 | E116: 67
A117: 4 | B117: 30 | D117: 56 | E117: 65
A118: 8 | B118: 17 | C118: 37 | D118: 57 | E118: 72
A119: 2 | B119: 20 | C119: 35 | D119: 46 | E119: 75
E120: =+E113+1 -> 18
A122: 14 | B122: 21 | C122: 38 | D122: 48 | E122: 70
A123: 6 | B123: 18 | C123: 39 | D123: 56 | E123: 67
A124: 3 | B124: 22 | D124: 52 | E124: 74
A125: 4 | B125: 23 | C125: 40 | D125: 59 | E125: 62
A126: 12 | B126: 20 | C126: 43 | D126: 49 | E126: 72
E127: =+E120+1 -> 19
A129: 13 | B129: 19 | C129: 32 | D129: 55 | E129: 61
A130: 4 | B130: 28 | C130: 42 | D130: 48 | E130: 62
A131: 11 | B131: 16 | D131: 50 | E131: 68
A132: 7 | B132: 24 | C132: 35 | D132: 53 | E132: 65
A133: 10 | B133: 30 | C133: 39 | D133: 57 | E133: 64
E134: =+E127+1 -> 20
A136: 7 | B136: 29 | C136: 32 | D136: 60 | E136: 65
A137: 3 | B137: 24 | C137: 38 | D137: 46 | E137: 68
A138: 5 | B138: 25 | D138: 51 | E138: 70
A139: 10 | B139: 20 | C139: 42 | D139: 50 | E139: 61
A140: 14 | B140: 17 | C140: 45 | D140: 56 | E140: 66
E141: =+E134+1 -> 21
A143: 11 | B143: 16 | C143: 33 | D143: 55 | E143: 63
A144: 14 | B144: 27 | C144: 42 | D144: 46 | E144: 68
A145: 10 | B145: 24 | D145: 49 | E145: 70
A146: 13 | B146: 21 | C146: 35 | D146: 51 | E146: 61
A147: 5 | B147: 28 | C147: 32 | D147: 52 | E147: 62
E148: =+E141+1 -> 22
A150: 5 | B150: 21 | C150: 32 | D150: 47 | E150: 63
A151: 15 | B151: 22 | C151: 34 | D151: 48 | E151: 70
A152: 3 | B152: 16 | D152: 57 | E152: 67
A153: 12 | B153: 26 | C153: 39 | D153: 49 | E153: 62
A154: 14 | B154: 20 | C154: 38 | D154: 50 | E154: 72
E155: =+E148+1 -> 23
A157: 13 | B157: 19 | C157: 42 | D157: 52 | E157: 68
A158: 5 | B158: 25 | C158: 33 | D158: 50 | E158: 70
A159: 14 | B159: 28 | D159: 51 | E159: 63
A160: 12 | B160: 20 | C160: 39 | D160: 57 | E160: 69
A161: 8 | B161: 17 | C161: 38 | D161: 54 | E161: 74
E162: =+E155+1 -> 24
A164: 7 | B164: 30 | C164: 37 | D164: 48 | E164: 64
A165: 11 | B165: 17 | C165: 42 | D165: 55 | E165: 74
A166: 1 | B166: 26 | D166: 47 | E166: 75
A167: 4 | B167: 18 | C167: 31 | D167: 49 | E167: 69
A168: 3 | B168: 27 | C168: 32 | D168: 60 | E168: 70
E169: =+E162+1 -> 25
A171: 5 | B171: 27 | C171: 41 | D171: 60 | E171: 65
A172: 8 | B172: 30 | C172: 31 | D172: 58 | E172: 66
A173: 13 | B173: 25 | D173: 57 | E173: 63
A174: 14 | B174: 26 | C174: 40 | D174: 49 | E174: 70
A175: 9 | B175: 16 | C175: 43 | D175: 50 | E175: 61
E176: =+E169+1 -> 26
A178: 6 | B178: 27 | C178: 31 | D178: 60 | E178: 66
A179: 9 | B179: 29 | C179: 37 | D179: 59 | E179: 73
A180: 10 | B180: 26 | D180: 52 | E180: 61
A181: 2 | B181: 20 | C181: 32 | D181: 48 | E181: 67
A182: 11 | B182: 22 | C182: 34 | D182: 46 | E182: 71
E183: =+E176+1 -> 27
A185: 14 | B185: 16 | C185: 45 | D185: 52 | E185: 70
A186: 9 | B186: 25 | C186: 37 | D186: 56 | E186: 74
A187: 11 | B187: 28 | D187: 59 | E187: 65
A188: 10 | B188: 22 | C188: 42 | D188: 47 | E188: 75
A189: 6 | B189: 29 | C189: 44 | D189: 57 | E189: 66
E190: =+E183+1 -> 28
A192: 11 | B192: 20 | C192: 45 | D192: 51 | E192: 74
A193: 9 | B193: 23 | C193: 33 | D193: 56 | E193: 72
A194: 13 | B194: 27 | D194: 54 | E194: 68
A195: 2 | B195: 24 | C195: 40 | D195: 50 | E195: 69
A196: 4 | B196: 25 | C196: 39 | D196: 47 | E196: 64
E197: =+E190+1 -> 29
A199: 10 | B199: 27 | C199: 35 | D199: 52 | E199: 68
A200: 1 | B200: 23 | C200: 44 | D200: 51 | E200: 73
A201: 7 | B201: 20 | D201: 49 | E201: 74
A202: 9 | B202: 30 | C202: 41 | D202: 48 | E202: 69
A203: 13 | B203: 19 | C203: 37 | D203: 47 | E203: 66
E204: =+E197+1 -> 30
A206: 1 | B206: 17 | C206: 40 | D206: 49 | E206: 71
A207: 12 | B207: 27 | C207: 31 | D207: 53 | E207: 64
A208: 5 | B208: 19 | D208: 55 | E208: 66
A209: 13 | B209: 16 | C209: 41 | D209: 59 | E209: 72
A210: 15 | B210: 23 | C210: 42 | D210: 47 | E210: 73
E211: =+E204+1 -> 31
A213: 5 | B213: 24 | C213: 45 | D213: 59 | E213: 68
A214: 7 | B214: 28 | C214: 37 | D214: 47 | E214: 64
A215: 12 | B215: 25 | D215: 50 | E215: 70
A216: 9 | B216: 19 | C216: 38 | D216: 58 | E216: 65
A217: 1 | B217: 23 | C217: 40 | D217: 54 | E217: 71
E218: =+E211+1 -> 32
A220: 1 | B220: 25 | C220: 40 | D220: 58 | E220: 74
A221: 2 | B221: 18 | C221: 31 | D221: 53 | E221: 72
A222: 14 | B222: 24 | D222: 56 | E222: 66
A223: 12 | B223: 26 | C223: 38 | D223: 52 | E223: 61
A224: 15 | B224: 22 | C224: 37 | D224: 54 | E224: 62
E225: =+E218+1 -> 33
A227: 6 | B227: 17 | C227: 43 | D227: 53 | E227: 65
A228: 1 | B228: 18 | C228: 45 | D228: 48 | E228: 72
A229: 3 | B229: 23 | D229: 51 | E229: 70
A230: 8 | B230: 16 | C230: 42 | D230: 56 | E230: 69
A231: 12 | B231: 30 | C231: 44 | D231: 49 | E231: 74
E232: =+E225+1 -> 34
A234: 2 | B234: 24 | C234: 36 | D234: 48 | E234: 70
... 3460 more rows

Sheet cartones jugados
B1: Nºs en juego (Rango)
A2: Nºs en juego | B2: desde | C2: hasta | E2: NUMEROS JUGADOS
L3: =+E3 -> 0
L4: =+E4 -> 0
L5: 0
L6: 0
L7: 0
L8: 0
L9: 0
L10: 0
L11: 0
L12: 0
L13: 0
L14: 0
L15: 0
L16: 0
L17: 0
L18: 0
L19: 0
L20: 0
L21: 0
L22: 0
L23: 0
L24: 0
L25: 0
L26: 0
L27: 0
L28: 0
L29: 0
L30: 0
L31: 0
L32: 0
L33: 0
L34: 0
L35: 0
L36: 0
L37: 0
L38: 0
L39: 0
L40: 0
L41: 0
L42: 0
L43: 0
L44: 0
L45: 0
L46: 0
L47: 0
L48: 0
L49: 0
L50: 0
L51: 0
L52: 0
L53: 0
L54: 0
L55: 0
L56: 0
L57: 0
L58: 0
L59: 0
L60: 0
L61: 0
L62: 0
L63: 0
L64: 0
L65: 0
L66: 0
L67: 0
L68: =+E68 -> 0
L69: 0
L70: 0
L71: 0
L72: 0
L73: 0
L74: 0
L75: 0
L76: 0
L77: 0
L78: 0
L79: 0
L80: 0
L81: 0
L82: 0
L83: 0
L84: 0
L85: 0
L86: 0
L87: 0
L88: 0
L89: 0
L90: 0
L91: 0
L92: 0
L93: 0
L94: 0
L95: 0
L96: 0
L97: 0
L98: 0
L99: 0
L100: 0
L101: 0
L102: 0
L103: 0
L104: 0
L105: 0
L106: 0
L107: 0
L108: 0
L109: 0
L110: 0
L111: 0
L112: 0
L113: 0
L114: 0
L115: 0
L116: 0
L117: 0
L118: 0
L119: 0
L120: 0
L121: 0
L122: 0
L123: 0
L124: 0
L125: 0
L126: 0
L127: 0
L128: 0
L129: 0
L130: 0
L131: 0
L132: =+E132 -> 0
L133: 0
L134: 0
L135: 0
L136: 0
L137: 0
L138: 0
L139: 0
L140: 0
L141: 0
L142: 0
L143: 0
L144: 0
L145: 0
L146: 0
L147: 0
L148: 0
L149: 0
L150: 0
L151: 0
L152: 0
L153: 0
L154: 0
L155: 0
L156: 0
L157: 0
L158: 0
L159: 0
L160: 0
L161: 0
L162: 0
L163: 0
L164: 0
L165: 0
L166: 0
L167: 0
L168: 0
L169: 0
L170: 0
L171: 0
L172: 0
L173: 0
L174: 0
L175: 0
L176: 0
L177: 0
L178: 0
L179: 0
L180: 0
L181: 0
L182: 0
L183: 0
L184: 0
L185: 0
L186: 0
L187: 0
L188: 0
L189: 0
L190: 0
L191: 0
L192: 0
L193: 0
L194: 0
L195: 0
L196: =+E196 -> 0
L197: 0
L198: 0
L199: 0
L200: 0
... 3802 more rows
